bitfinex/quotes_ETHUSD_20251217
["timestamp","ask_amount","ask_price","bid_price","bid_amount"]
[1765950564843,1.06061996,2940.4,2939.6,0.01027714]
[1765950565042,1.06061996,2940.4,2939.6,3.89480051]
[1765950565263,0.1605,2940.9,2939.8,0.4827]
[1765950565466,0.46438023,2940.7,2939.9,0.55527714]
[1765950566251,0.46438023,2940.7,2939.9,0.545]
[1765950566556,6.80156434,2940.5,2939.9,0.545]
[1765950567874,6.80156434,2940.5,2939.9,1.0277]
[1765950567875,3.40078217,2940.5,2939.9,1.0277]
[1765950568046,0.46438023,2940.8,2940.0,0.49297714]
[1765950568247,3.56081963,2940.9,2940.0,0.52699074]
[1765950568546,3.56081963,2940.9,2940.2,3.88382917]
[1765950568969,0.46438023,2941.3,2940.3,0.4827]
[1765950569143,0.46438023,2941.1,2940.4,0.545]
[1765950569345,3.39974299,2941.4,2940.9,0.9595]
[1765950569669,3.39993181,2941.3,2940.9,0.9595]
[1765950570074,3.39999636,2941.2,2940.9,0.9595]
[1765950570277,3.39999636,2941.2,2940.5,0.49297714]
[1765950570278,3.40120401,2941.0,2940.5,0.49297714]
[1765950570779,0.001,2941.0,2940.9,0.9595]
[1765950571080,0.001,2941.0,2940.4,0.545]
[1765950572051,0.001,2941.0,2940.4,3.94588406]
[1765950572555,0.001,2941.0,2940.5,3.40076275]
[1765950572772,0.001,2941.0,2940.6,0.4827]
[1765950573350,0.001,2941.0,2940.4,0.545]
[1765950573552,0.1605,2940.9,2940.4,0.545]
[1765950574581,3.40043525,2940.8,2940.4,0.545]
[1765950575294,6.8008705,2940.8,2940.4,0.545]
[1765950575596,0.4042,2940.5,2940.4,0.545]
[1765950575967,3.40043525,2940.8,2940.4,0.545]
[1765950576288,0.1696,2939.9,2939.1,0.1894]
[1765950576593,10.20477582,2939.8,2939.1,0.1894]
[1765950576792,0.4042,2939.7,2939.0,0.002]
[1765950576989,0.4042,2939.6,2939.0,0.002]
[1765950578267,0.1444,2939.5,2939.0,0.002]
[1765950578667,6.80410968,2939.4,2939.0,0.002]
[1765950579366,0.5486,2939.1,2939.0,0.002]
[1765950579810,0.4016,2939.1,2939.0,0.002]
[1765950580671,3.80400209,2939.1,2939.0,0.002]
[1765950580981,4.6863306,2939.1,2939.0,0.002]
[1765950584873,0.4016,2938.8,2937.9,0.1894]
[1765950585073,0.4042,2938.7,2937.8,0.002]
[1765950585476,0.4042,2938.5,2937.8,0.002]
[1765950585796,1.06511584,2938.5,2937.8,0.002]
[1765950585999,0.4042,2938.4,2937.8,0.002]
[1765950586200,0.1444,2937.9,2937.8,0.002]
[1765950586977,3.94979182,2937.9,2937.8,0.002]
[1765950588400,3.54819182,2937.9,2937.8,0.002]
[1765950588572,3.94979182,2937.9,2937.8,0.002]
[1765950588906,4.73963863,2937.9,2937.8,0.002]
[1765950589904,1.33584681,2937.9,2937.8,0.002]
[1765950590100,4.73963863,2937.9,2937.8,0.002]
[1765950590304,0.93424681,2937.9,2937.8,0.002]
[1765950590488,4.73963863,2937.9,2937.8,0.002]
[1765950592399,0.93424681,2937.9,2937.8,0.002]
[1765950592598,4.73963863,2937.9,2937.8,0.002]
[1765950592909,0.4082,2937.7,2937.6,0.002]
[1765950593410,3.81222355,2937.7,2937.6,0.002]
[1765950596487,0.004,2937.7,2937.6,0.002]
[1765950596797,3.81222355,2937.7,2937.6,0.002]
[1765950601715,0.4042,2937.5,2936.6,3.95223081]
[1765950601920,0.1605,2937.2,2936.6,0.002]
[1765950602124,3.96866108,2937.8,2936.7,0.46847714]
[1765950602291,4.43303991,2937.8,2936.9,0.4582]
[1765950603019,7.83699959,2937.8,2936.9,0.4582]
[1765950603215,3.40413943,2937.6,2936.9,3.86311196]
[1765950604216,3.56442719,2937.8,2937.0,0.4541]
[1765950604418,0.544,2938.1,2937.2,0.4541]
[1765950604795,0.4042,2937.8,2937.1,0.91649628]
[1765950605121,0.4042,2937.8,2936.9,3.40491196]
[1765950605286,6.8080471,2937.7,2936.9,3.40491196]
[1765950605490,6.8080471,2937.7,2936.8,4.4031602]
[1765950605699,0.544,2938.0,2937.2,0.4541]
[1765950605911,0.1605,2937.9,2937.2,0.4541]
[1765950606218,0.5647,2937.9,2937.2,0.4541]
[1765950606990,0.5647,2937.9,2936.9,0.01027714]
[1765950606991,0.99854383,2937.9,2936.9,0.01027714]
[1765950607195,0.4042,2937.8,2936.9,0.46437714]
[1765950607616,3.40390768,2937.8,2937.1,0.1901]
[1765950607811,3.40390768,2937.8,2937.1,0.6442]
[1765950608007,3.56433169,2937.9,2937.1,1.39061469]
[1765950608207,3.56432203,2937.9,2937.2,0.4541]
[1765950608398,7.37234406,2937.9,2937.1,0.1901]
[1765950608605,3.96952203,2937.9,2937.1,0.6442]
[1765950609000,7.37334406,2937.9,2937.1,0.6442]
[1765950609405,3.96952203,2937.9,2937.1,0.6442]
[1765950609895,3.96952203,2937.9,2937.2,3.40460302]
[1765950610522,7.37334406,2937.9,2937.2,3.40460302]
[1765950610727,7.37334406,2937.9,2937.1,4.60761994]
[1765950611016,7.37334406,2937.9,2937.1,4.04891659]
[1765950611423,3.56536962,2937.9,2937.2,0.4541]
[1765950611616,0.1615,2937.9,2937.2,0.4541]
[1765950611927,3.56529995,2937.9,2937.3,3.40448711]
[1765950612227,0.1615,2937.9,2937.3,3.85858711]
[1765950612625,0.1615,2937.9,2937.3,7.26307422]
[1765950612922,0.1615,2937.9,2937.3,3.85858711]
[1765950613720,3.56533438,2937.9,2937.3,3.85858711]
[1765950613915,4.34909348,2937.9,2937.3,0.4541]
[1765950614699,7.75292786,2937.9,2937.2,3.40456211]
[1765950615522,4.34909348,2937.9,2937.3,3.40448458]
[1765950615728,3.4048163,2937.9,2937.4,0.4541]
[1765950615923,0.001,2937.9,2937.4,0.4541]
[1765950617432,3.40390768,2937.8,2937.4,0.4541]
[1765950617600,6.80781536,2937.8,2937.4,0.4541]
[1765950617806,3.40390768,2937.8,2937.4,0.4541]
[1765950618207,3.56533354,2937.9,2937.4,0.4541]
[1765950618416,0.1615,2937.9,2937.4,3.85845386]
[1765950619224,3.56529528,2937.9,2937.5,0.4541]
[1765950619425,3.96224481,2937.9,2937.2,4.40168005]
[1765950619733,3.96224481,2937.9,2937.3,0.4541]
[1765950620324,7.36604009,2937.9,2937.3,0.4541]
[1765950620527,7.77024009,2937.9,2937.2,0.543]
[1765950620705,3.96227303,2937.9,2937.2,3.94759128]
[1765950620911,3.96227303,2937.9,2937.8,0.4961]
[1765950620912,0.001,2937.9,2937.8,0.4961]
[1765950621112,3.54920446,2937.9,2937.5,0.4541]
[1765950621437,3.54920446,2937.9,2937.3,0.4541]
[1765950621617,0.1454,2937.9,2937.3,4.65936196]
[1765950621934,4.11130297,2937.9,2937.3,0.80087584]
[1765950622106,4.11130297,2937.9,2937.2,3.94755008]
[1765950622312,4.11130297,2937.9,2937.3,3.40447788]
[1765950623353,4.11134206,2937.9,2937.3,3.40447788]
[1765950624342,4.11134206,2937.9,2937.2,3.94754164]
[1765950624343,7.51518412,2937.9,2937.2,3.94754164]
[1765950624547,4.11134206,2937.9,2937.2,3.94754164]
[1765950625044,0.4016,2937.8,2937.2,3.94754164]
[1765950625406,0.4016,2937.8,2937.2,0.543]
[1765950625610,0.4042,2937.7,2937.2,0.543]
[1765950626218,3.80827069,2937.7,2937.2,0.543]
[1765950626417,0.4042,2937.7,2937.2,0.543]
[1765950626612,3.8082314,2937.7,2937.2,0.543]
[1765950626829,0.1444,2937.3,2937.1,3.40667138]
[1765950627132,0.0014,2937.2,2937.1,3.40667138]
[1765950627331,1.21526193,2937.7,2937.2,3.40456178]
[1765950627539,3.40398766,2937.8,2937.2,3.40456178]
[1765950627735,3.40398766,2937.8,2937.1,4.05086326]
[1765950627922,3.80818766,2937.8,2937.1,4.05086326]
[1765950628130,0.4042,2937.7,2937.1,3.40666326]
[1765950628325,3.40398766,2937.8,2937.2,0.1901]
[1765950628509,0.45126877,2937.8,2937.2,0.1901]
[1765950628915,0.4042,2937.8,2937.2,0.1901]
[1765950629239,0.4042,2937.8,2937.2,0.22414603]
[1765950629435,3.56529518,2937.9,2937.3,0.4541]
[1765950629635,3.56529518,2937.9,2937.2,0.1901]
[1765950629636,7.37329036,2937.9,2937.2,0.1901]
[1765950629940,0.4042,2937.8,2937.1,6.8113822]
[1765950630142,0.001,2937.9,2937.2,0.46437714]
[1765950630440,0.001,2937.9,2937.3,0.543]
[1765950630441,3.56530557,2937.9,2937.3,0.543]
[1765950630645,0.4042,2937.4,2937.3,0.543]
[1765950630847,0.0014,2937.2,2937.1,0.002]
[1765950631553,0.4042,2937.5,2937.1,0.002]
[1765950631836,0.1444,2937.2,2937.1,0.002]
[1765950632043,0.1444,2937.2,2937.1,3.40671894]
[1765950632240,0.1444,2937.2,2937.1,0.002]
[1765950635343,4.30549252,2937.2,2937.1,0.002]
[1765950637251,0.9008895,2937.2,2937.1,0.002]
[1765950638342,0.546,2937.2,2937.1,0.002]
[1765950638844,3.95060302,2937.2,2937.1,0.002]
[1765950639946,0.546,2937.2,2937.1,0.002]
[1765950641258,3.95060302,2937.2,2937.1,0.002]
[1765950641428,0.546,2937.2,2937.1,0.002]
[1765950642748,0.4042,2937.2,2937.1,0.002]
[1765950643261,3.95320302,2937.2,2937.1,0.002]
[1765950644859,0.5486,2937.2,2937.1,0.002]
[1765950645040,0.4042,2937.2,2937.1,0.002]
[1765950645240,0.46538023,2937.5,2937.1,0.002]
[1765950645550,0.4042,2937.2,2937.1,0.002]
[1765950648459,1.18686232,2937.5,2937.1,0.4906]
[1765950648688,0.4052,2937.5,2937.1,0.4906]
[1765950648888,0.4052,2937.5,2937.1,0.002]
[1765950648889,0.1444,2937.2,2937.1,0.002]
[1765950649585,0.4052,2937.5,2937.1,0.002]
[1765950649881,3.8094906,2937.5,2937.1,0.002]
[1765950650548,0.1444,2937.2,2937.1,0.002]
[1765950651598,0.546,2937.2,2937.1,0.002]
[1765950651747,4.81002094,2937.2,2937.1,0.002]
[1765950656078,5.35202094,2937.2,2937.1,0.002]
[1765950657295,11.81202094,2937.2,2937.0,0.002]
[1765950657451,0.5486,2936.7,2936.6,0.002]
[1765950657658,0.4042,2936.7,2936.6,0.002]
[1765950657952,0.4042,2937.0,2936.6,0.002]
[1765950658479,1.00638023,2937.1,2936.6,0.002]
[1765950658480,1.01038023,2937.1,2936.6,0.002]
[1765950658688,6.46,2937.2,2936.7,0.4759]
[1765950658877,3.40441363,2937.4,2936.7,0.4759]
[1765950659390,3.40441363,2937.4,2936.8,3.88096673]
[1765950659590,3.40441363,2937.4,2936.8,0.4759]
[1765950659788,3.40441363,2937.4,2936.6,0.002]
[1765950659789,0.4042,2937.3,2936.6,0.002]
[1765950660385,0.4042,2937.2,2936.6,0.002]
[1765950660895,0.46438023,2937.3,2936.6,0.4779]
[1765950661090,0.86858023,2937.3,2936.7,3.40515921]
[1765950661293,4.27314153,2937.3,2936.7,3.88105921]
[1765950661694,0.46438023,2937.3,2936.8,0.4759]
[1765950661896,0.46438023,2937.3,2936.8,0.50995066]
[1765950662059,0.46438023,2937.3,2936.8,0.4759]
[1765950662593,3.40442615,2937.4,2936.8,0.4759]
[1765950663186,9.86442615,2937.4,2936.8,0.4759]
[1765950663766,9.86442615,2937.4,2936.8,3.88093639]
[1765950664094,9.86442615,2937.4,2936.8,3.88096136]
[1765950664268,13.2688523,2937.4,2936.8,0.4759]
[1765950664470,13.6730523,2937.4,2936.7,3.40513805]
[1765950664966,13.6730523,2937.4,2936.6,0.4569]
[1765950664967,0.4042,2937.3,2936.6,3.86214575]
[1765950665290,0.4042,2937.3,2936.8,3.40500149]
[1765950665590,0.4042,2937.3,2936.7,3.40514023]
[1765950665892,3.40460302,2937.2,2936.6,3.86216007]
[1765950666299,0.86858023,2937.1,2936.6,0.4764]
[1765950666608,0.546,2936.7,2936.6,0.002]
[1765950667094,0.46438023,2937.1,2936.6,0.4569]
[1765950667272,0.46438023,2937.1,2936.6,3.86219045]
[1765950667670,3.40473668,2937.1,2936.6,0.4569]
[1765950667865,0.4042,2936.7,2936.6,0.002]
[1765950668865,0.5486,2936.7,2936.6,0.002]
[1765950669664,3.95378268,2936.7,2936.6,0.002]
[1765950673469,8.73544606,2936.7,2936.6,0.002]
[1765950674071,9.19982629,2936.7,2936.6,0.002]
[1765950674296,10.51451596,2936.7,2936.6,0.002]
[1765950674938,0.143,2936.5,2936.4,0.002]
[1765950675082,5.86966338,2936.5,2936.4,0.002]
[1765950675412,5.86966338,2936.5,2936.0,0.002]
[1765950675413,0.4082,2936.1,2936.0,0.002]
[1765950675572,5.18986338,2936.1,2936.0,0.002]
[1765950675773,6.25084972,2936.1,2936.0,0.002]
[1765950676609,0.546,2935.5,2935.4,0.002]
[1765950677993,3.95257468,2935.5,2935.4,0.002]
[1765950678793,0.004,2935.3,2935.2,0.002]
[1765950679111,1.18279098,2935.3,2935.2,0.002]
[1765950679688,4.58959777,2935.3,2935.2,0.002]
[1765950683388,0.2144,2934.9,2934.8,0.002]
[1765950683616,0.6186,2934.9,2934.8,0.002]
[1765950684433,4.02587111,2934.9,2934.8,0.002]
[1765950684628,0.1404,2934.9,2934.8,0.002]
[1765950684796,0.4042,2935.7,2934.8,0.9313]
[1765950685116,0.4042,2935.5,2934.8,0.9313]
[1765950685316,1.19125802,2935.5,2934.8,0.9313]
[1765950685883,0.4042,2935.4,2934.8,0.002]
[1765950686088,0.1444,2934.9,2934.8,0.002]
[1765950686502,3.80853917,2935.2,2934.8,0.002]
[1765950687626,0.4016,2935.2,2934.8,0.002]
[1765950687945,0.147,2934.9,2934.8,0.002]
[1765950688296,0.546,2934.9,2934.8,0.002]
[1765950688498,3.55427111,2934.9,2934.8,0.002]
[1765950688736,3.55427111,2934.9,2934.4,0.002]
[1765950688737,0.5486,2934.5,2934.4,0.002]
[1765950688946,0.4056,2934.3,2934.2,0.002]
[1765950690113,3.81356782,2934.3,2934.2,0.002]
[1765950690313,4.53570969,2934.3,2934.2,0.002]
[1765950690905,1.12774187,2934.3,2934.2,0.002]
[1765950691105,3.81356782,2934.3,2934.2,0.002]
[1765950694153,0.4056,2934.3,2934.2,0.002]
[1765950694304,6.46,2934.6,2934.2,0.002]
[1765950694506,6.8642,2934.6,2934.2,0.002]
[1765950694845,0.1444,2934.3,2934.2,0.002]
[1765950695040,6.46,2934.6,2934.2,0.002]
[1765950695343,0.4042,2934.3,2934.2,0.002]
[1765950696345,0.5486,2934.3,2934.2,0.002]
[1765950696548,6.46,2934.6,2934.2,0.002]
[1765950696749,0.546,2934.3,2934.2,0.002]
[1765950697118,0.1444,2934.3,2934.2,0.002]
[1765950698414,3.95396782,2934.3,2934.2,0.002]
[1765950703133,0.546,2934.3,2934.2,0.002]
[1765950703314,3.95396782,2934.3,2934.2,0.002]
[1765950703514,4.69013873,2934.3,2934.2,0.002]
[1765950705055,0.4042,2934.6,2934.2,0.495]
[1765950705229,6.46,2934.9,2934.3,4.82195189]
[1765950705433,6.46,2935.0,2934.4,0.4808]
[1765950705628,6.46,2935.0,2934.7,4.78787222]
[1765950705829,6.46,2935.0,2934.5,5.26867222]
[1765950706235,6.8642,2935.0,2934.5,4.78787222]
[1765950706562,6.46,2935.0,2934.5,8.19557172]
[1765950706857,0.4042,2934.9,2934.3,3.40786913]
[1765950707260,6.46,2935.0,2934.5,3.40770868]
[1765950707463,10.27135568,2935.0,2934.5,3.40770868]
[1765950707663,10.27135568,2935.0,2934.4,3.40779973]
[1765950708052,6.8642,2935.0,2934.5,3.40771189]
[1765950708229,10.27137426,2935.0,2934.4,3.40780411]
[1765950708837,10.27137426,2935.0,2934.4,3.40785169]
[1765950709375,6.8642,2935.0,2934.4,3.40785169]
[1765950709974,6.46,2935.0,2934.5,0.4808]
[1765950710175,0.001,2935.4,2935.3,0.493]
[1765950710340,0.001,2935.4,2935.3,0.9738]
[1765950710844,0.001,2935.4,2935.3,4.38060679]
[1765950711241,0.001,2935.4,2935.3,0.493]
[1765950711445,0.001,2935.4,2935.1,3.94895587]
[1765950711775,0.1444,2935.3,2935.2,3.40689555]
[1765950711980,0.001,2935.4,2935.2,3.40689555]
[1765950712878,0.001,2935.4,2935.1,0.542]
[1765950713064,0.1444,2935.2,2935.1,0.542]
[1765950714164,0.1444,2935.2,2934.8,0.1968]
[1765950714376,0.1444,2935.2,2934.8,3.60416125]
[1765950714576,0.1444,2935.2,2934.9,3.40726523]
[1765950714946,0.1444,2935.2,2934.8,0.1968]
[1765950715252,0.001,2935.4,2935.3,0.493]
[1765950715458,0.001,2935.4,2935.1,0.1968]
[1765950715644,3.40772371,2935.4,2934.9,0.1968]
[1765950715842,0.4042,2935.3,2934.7,0.542]
[1765950716479,0.1444,2934.8,2934.7,0.542]
[1765950720980,0.1444,2934.8,2934.7,3.94950332]
[1765950721186,0.4016,2935.2,2934.7,3.94950332]
[1765950721782,0.1444,2934.8,2934.7,0.542]
[1765950722180,3.40685697,2935.3,2934.7,3.94950332]
[1765950722373,0.7449857,2935.2,2934.7,3.94950332]
[1765950722691,7.2049857,2935.2,2934.7,3.94950332]
[1765950723090,7.2049857,2935.2,2934.7,0.542]
[1765950723386,0.1444,2934.8,2934.7,0.542]
[1765950723583,0.4042,2935.1,2934.7,0.542]
[1765950723790,1.46539345,2935.1,2934.7,0.542]
[1765950724188,0.1444,2934.8,2934.7,0.542]
[1765950726066,1.46539345,2935.1,2934.7,0.542]
[1765950726696,4.87243689,2935.1,2934.7,0.542]
[1765950726894,0.1444,2934.8,2934.7,0.542]
[1765950729580,6.8007857,2935.2,2934.7,3.94950332]
[1765950729581,6.46,2935.2,2934.7,3.94950332]
[1765950729899,6.46,2935.2,2934.7,9.18911647]
[1765950730275,9.86693042,2935.2,2934.7,9.18911647]
[1765950730479,0.4082,2934.5,2934.4,0.002]
[1765950730791,0.5446,2934.3,2934.2,0.002]
[1765950732285,3.95256782,2934.3,2934.2,0.002]
[1765950733674,0.4042,2935.0,2934.2,0.002]
[1765950733877,0.4042,2934.3,2934.2,0.002]
[1765950734097,0.5486,2934.3,2934.2,0.002]
[1765950734311,0.4042,2934.3,2934.2,0.002]
[1765950736402,0.542,2934.7,2934.2,0.002]
[1765950736403,0.4042,2934.6,2934.2,0.002]
[1765950736799,0.1444,2934.3,2934.2,0.002]
[1765950738094,3.55236782,2934.3,2934.2,0.002]
[1765950738377,3.95396782,2934.3,2934.2,0.002]
[1765950738579,0.46438023,2934.7,2934.2,0.002]
[1765950738773,7.27938687,2934.7,2934.2,0.4563]
[1765950738979,7.27938687,2934.7,2934.2,0.002]
[1765950738980,0.4042,2934.3,2934.2,0.002]
[1765950740181,3.81216782,2934.3,2934.2,0.002]
[1765950740790,0.4042,2934.3,2934.2,0.002]
[1765950742016,3.81216782,2934.3,2934.2,0.002]
[1765950742615,0.4042,2934.3,2934.2,0.002]
[1765950743515,6.46,2934.6,2934.2,0.002]
[1765950743817,0.4016,2934.3,2934.2,0.002]
[1765950744820,6.46,2934.6,2934.2,0.002]
[1765950744989,6.8642,2934.6,2934.2,0.002]
[1765950745416,3.40778327,2934.5,2934.2,0.002]
[1765950745916,13.67951694,2934.6,2934.2,0.002]
[1765950746119,15.18179078,2934.6,2934.2,0.002]
[1765950746493,0.1444,2934.3,2934.2,0.002]
[1765950747524,11.77413231,2934.6,2934.2,0.4927]
[1765950747689,15.18179078,2934.6,2934.2,0.4927]
[1765950748713,14.77759078,2934.6,2934.2,0.947]
[1765950749115,15.18179078,2934.6,2934.2,0.4927]
[1765950749906,11.36993231,2934.6,2934.2,0.947]
[1765950750225,9.86765847,2934.6,2934.2,0.947]
[1765950750627,9.86765847,2934.6,2934.2,0.002]
[1765950750628,0.1444,2934.3,2934.2,0.002]
[1765950750826,3.95396782,2934.3,2934.2,0.002]
[1765950751531,0.1444,2934.3,2934.2,0.002]
[1765950751827,3.55236782,2934.3,2934.2,0.002]
[1765950752031,3.95396782,2934.3,2934.2,0.002]
[1765950752194,0.1444,2934.3,2934.2,0.002]
[1765950753924,9.86767104,2934.6,2934.2,0.002]
[1765950754123,1.40754735,2934.5,2934.2,0.002]
[1765950755018,3.40785169,2934.4,2934.2,0.002]
[1765950755538,3.40774395,2934.5,2934.2,0.002]
[1765950755714,0.1444,2934.3,2934.2,0.002]
[1765950759633,3.55236782,2934.3,2934.2,0.002]
[1765950759858,0.84041278,2934.3,2934.2,0.002]
[1765950760136,0.1444,2934.3,2934.2,0.002]
[1765950762542,6.461,2934.6,2934.2,0.4982]
[1765950763040,10.27289772,2934.6,2934.2,0.4982]
[1765950763237,15.18295921,2934.6,2934.2,0.4982]
[1765950763436,15.18295921,2934.6,2934.2,0.002]
[1765950763626,0.1444,2934.3,2934.2,0.002]
[1765950767109,3.95396782,2934.3,2934.2,0.002]
[1765950768930,3.55236782,2934.3,2934.2,0.002]
[1765950769230,4.65008213,2934.3,2934.2,0.002]
[1765950781056,0.001,2934.4,2934.3,0.4962]
[1765950781274,0.001,2934.4,2934.3,1.5034]
[1765950781550,0.001,2934.4,2934.3,1.96778023]
[1765950781853,0.001,2934.6,2934.5,0.9614]
[1765950782052,0.001,2934.6,2934.5,6.24699069]
[1765950782230,0.001,2934.6,2934.5,10.38109105]
[1765950782437,0.001,2934.6,2934.5,10.3470137]
[1765950787468,0.001,2935.4,2935.3,1.1278]
[1765950787766,0.001,2935.6,2935.5,0.9323]
[1765950787962,0.001,2935.6,2935.5,1.62395617]
[1765950788273,0.001,2935.8,2935.7,0.459]
[1765950788566,0.001,2935.8,2935.7,9.66302405]
[1765950791458,0.001,2935.8,2935.7,1.0]
[1765950791640,0.4102,2935.8,2935.7,0.541]
[1765950792037,0.5496,2935.8,2935.1,0.1955]
[1765950792236,0.4102,2935.8,2935.4,3.8799091]
[1765950792546,0.001,2935.8,2935.7,0.9323]
[1765950793634,0.001,2935.8,2935.7,0.459]
[1765950796663,0.001,2935.8,2935.7,0.9323]
[1765950797476,0.001,2935.8,2935.7,0.459]
[1765950800565,0.1404,2935.8,2935.4,0.541]
[1765950800769,0.1404,2935.8,2935.4,1.0143]
[1765950801252,0.1404,2935.8,2935.4,4.42093744]
[1765950801570,0.001,2935.8,2935.7,0.459]
[1765950801940,0.001,2935.8,2935.7,3.8653426]
[1765950802141,0.001,2935.8,2935.7,4.3386426]
[1765950803047,0.001,2935.8,2935.7,0.9323]
[1765950803856,0.001,2935.8,2935.7,5.6026017]
[1765950804353,0.001,2935.8,2935.7,4.3386426]
[1765950804951,0.001,2935.8,2935.7,0.9323]
[1765950805242,0.001,2935.8,2935.7,9.13020998]
[1765950805678,0.001,2935.8,2935.7,4.34891974]
[1765950805881,0.001,2935.8,2935.7,4.3386426]
[1765950806089,0.4065,2935.7,2935.5,3.40651165]
[1765950806370,0.4038,2935.4,2935.3,3.40880679]
[1765950806572,0.1447,2935.7,2935.3,0.002]
[1765950807150,0.001,2935.8,2935.3,0.4753]
[1765950808679,0.4102,2935.8,2935.3,0.002]
[1765950808887,0.1394,2935.4,2935.3,0.002]
[1765950809787,0.4065,2935.7,2935.3,0.002]
[1765950809964,0.4065,2935.7,2935.3,3.40876316]
[1765950810273,0.4065,2935.7,2935.3,0.002]
[1765950811777,0.001,2935.8,2935.3,0.4753]
[1765950812077,0.4102,2935.8,2935.3,0.4753]
[1765950812270,1.14999831,2935.8,2935.3,0.4753]
[1765950813489,0.4092,2935.7,2935.3,0.002]
[1765950814389,4.14705817,2935.8,2935.3,0.002]
[1765950814592,4.55625817,2935.8,2935.3,0.002]
[1765950814759,0.4092,2935.7,2935.3,0.002]
[1765950817279,0.74079831,2935.8,2935.3,0.497]
[1765950817480,0.001,2935.8,2935.3,0.497]
[1765950818874,0.001,2935.8,2935.7,0.9772]
[1765950819662,0.001,2935.8,2935.7,5.75849024]
[1765950820386,0.001,2935.8,2935.7,0.9772]
[1765950820885,0.001,2935.8,2935.7,4.3835426]
[1765950821088,0.001,2935.8,2935.7,5.69579908]
[1765950822296,0.001,2935.8,2935.7,5.70607622]
[1765950822782,0.001,2935.8,2935.7,5.69579908]
[1765950823295,0.1404,2935.8,2935.6,3.40642113]
[1765950823467,0.001,2935.8,2935.7,3.8885426]
[1765950823669,0.001,2935.8,2935.7,4.3835426]
[1765950825606,0.001,2935.8,2935.7,0.4822]
[1765950826304,0.1404,2935.8,2935.5,4.44255634]
[1765950826601,0.1381,2935.4,2935.3,0.002]
[1765950826804,0.4078,2935.7,2935.3,0.002]
[1765950827484,0.1408,2935.4,2935.3,0.002]
[1765950828783,0.5459,2935.4,2935.3,0.002]
[1765950829298,0.1408,2935.4,2935.3,0.002]
[1765950830093,8.73388098,2935.4,2935.3,0.002]
[1765950833098,8.32878098,2935.4,2935.3,0.002]
[1765950833305,3.40669074,2935.4,2935.3,0.002]
[1765950833507,3.54609074,2935.4,2935.3,0.002]
[1765950834320,0.1394,2935.4,2935.3,0.002]
[1765950835418,8.92722608,2935.7,2935.3,0.002]
[1765950835419,6.81271248,2935.7,2935.3,0.002]
[1765950835621,0.5459,2935.4,2935.3,0.002]
[1765950835821,0.1394,2935.4,2935.3,0.002]
[1765950836733,4.37073885,2935.7,2935.3,0.4842]
[1765950836898,0.46438023,2935.7,2935.6,0.4822]
[1765950837520,0.1394,2935.7,2935.4,0.495]
[1765950837726,0.1394,2935.7,2935.3,0.497]
[1765950837934,3.5457426,2935.7,2935.3,0.002]
[1765950838099,0.0041,2935.4,2935.3,0.002]
[1765950838298,3.8155426,2935.7,2935.3,0.002]
[1765950838723,0.1394,2935.4,2935.3,0.002]
[1765950839532,8.73388098,2935.4,2935.3,0.002]
[1765950839895,3.95259074,2935.4,2935.3,0.002]
[1765950840096,1.35344582,2935.4,2935.3,0.4842]
[1765950840319,0.1394,2935.4,2935.3,0.002]
[1765950841624,6.46,2935.5,2935.4,0.9772]
[1765950841824,6.46,2935.5,2935.4,5.75849024]
[1765950842024,0.001,2935.8,2935.7,0.9772]
[1765950842814,0.4065,2935.7,2935.6,0.541]
[1765950843123,0.001,2935.8,2935.7,0.4822]
[1765950843724,0.4102,2935.8,2935.6,0.541]
[1765950844133,0.0014,2935.7,2935.6,0.541]
[1765950844933,0.1381,2935.4,2935.3,0.543]
[1765950845230,0.4102,2935.8,2935.3,4.701722]
[1765950845529,0.4102,2935.8,2935.3,1.29491521]
[1765950846128,0.4102,2935.8,2935.3,4.70170802]
[1765950846344,11.59475284,2935.8,2935.3,0.543]
[1765950846503,0.1394,2935.4,2935.3,0.543]
[1765950847201,5.32719024,2935.4,2935.3,0.002]
[1765950847408,5.85990926,2935.4,2935.3,0.002]
[1765950847835,1.07861902,2935.4,2935.3,0.002]
[1765950848636,4.48530976,2935.4,2935.3,0.002]
[1765950849221,0.94191902,2935.4,2935.3,0.002]
[1765950849416,0.4092,2935.4,2935.3,0.002]
[1765950850240,3.81589074,2935.4,2935.3,0.002]
[1765950852310,3.95529074,2935.4,2935.3,0.002]
[1765950853741,0.5486,2935.4,2935.3,0.002]
[1765950854745,3.95529074,2935.4,2935.3,0.002]
[1765950854949,4.69158253,2935.4,2935.3,0.002]
[1765950855736,4.55218253,2935.4,2935.3,0.002]
[1765950855922,3.81319074,2935.4,2935.3,0.002]
[1765950856741,3.95529074,2935.4,2935.3,0.002]
[1765950858210,8.73955257,2935.4,2935.3,0.002]
[1765950858418,0.5486,2935.4,2935.3,0.002]
[1765950858813,0.4065,2935.4,2935.3,0.002]
[1765950859436,0.5486,2935.4,2935.3,0.002]
[1765950860146,3.95529074,2935.4,2935.3,0.002]
[1765950860313,8.73955257,2935.4,2935.3,0.002]
[1765950861226,9.95426575,2935.4,2935.3,0.002]
[1765950862244,5.17000392,2935.4,2935.3,0.002]
[1765950862417,3.95529074,2935.4,2935.3,0.002]
[1765950864246,8.73955257,2935.4,2935.3,0.002]
[1765950865048,15.19955257,2935.4,2935.3,0.002]